[Event "8th Mersin Open 2024"]
[Site "Mersin"]
[Date "2024.11.12"]
[Round "4"]
[White "Azizli, Nurlan"]
[Black "Herdem, Talha"]
[Result "1/2-1/2"]
[ECO "D37"]
[WhiteElo "1853"]
[BlackElo "1884"]
[Annotator "NA RC"]
[PlyCount "56"]
[EventDate "2024.11.10"]
[EventType "swiss"]
[EventCountry "TUR"]
[SourceTitle "playchess.com"]
[Source "ChessBase"]
[SourceQuality "1"]
[TimeControl "5400+30"]

1. d4 {[%emt 0:01:00]} Nf6 {[%emt 0:01:00]} 2. Nf3 {[%emt 0:00:00]} e6 {[%emt 0:00:30]} 3. c4 {[%emt 0:00:00]} d5 {[%emt 0:00:30]} 4. Nc3 {[%emt 0:00:30]} a6 {[%emt 0:00:00]} 5. c5 {[%emt 0:00:00]} b6 {[%emt 0:00:00]} 6. cxb6 {[%emt 0:00:00]} c5 {[%emt 0:00:00]} 7. Bg5 {[%emt 0:01:30]} Nbd7 {[%emt 0:01:00]} 8. e3 $11 {[%emt 0:00:30]} Qxb6 {[%emt 0:04:30]} 9. Qc2 {[%emt 0:01:30]} Bd6 {[%emt 0:03:30]} 10. dxc5 {[%emt 0:00:30]} Qxc5 {[%emt 0:00:30]} 11. Bd3 {[%emt 0:00:30]} h6 {[%emt 0:01:30]} 12. Bh4 {[%emt 0:02:30]} Bb7 {[%emt 0:01:30]} 13. O-O {[%emt 0:00:30]} O-O {[%emt 0:00:30]} 14. Rac1 {[%emt 0:01:30]} Rfc8 {[%emt 0:03:30]} 15. Rfd1 {[%emt 0:05:30]} Rc7 {[%emt 0:05:30]} 16. Qe2 {[%emt 0:09:30]} Qa5 {[%emt 0:05:30]} 17. Nd4 {[%emt 0:06:30]} Rac8 {[%emt 0:02:30]} 18. Nb3 {[%emt 0:01:30]} Qb6 {[%emt 0:12:30]} 19. Bg3 {[%emt 0:02:30]} Bxg3 {[%emt 0:02:30]} 20. hxg3 {[%emt 0:00:30]} Ne5 {[%emt 0:18:30]} 21. Bb1 {[%emt 0:02:30]} Nc4 {[%emt 0:02:30]} 22. e4 {[%emt 0:03:30]} dxe4 {[%emt 0:04:30]} 23. Nxe4 {[%emt 0:01:30]} Nxe4 {[%emt 0:02:30]} 24. Bxe4 {[%emt 0:00:30]} Bxe4 {[%emt 0:02:30]} 25. Qxe4 {[%emt 0:00:00]} Nxb2 {[%emt 0:03:30]} 26. Rxc7 Qxc7 {[%emt 0:00:00]} 27. Rd2 {[%emt 0:04:30]} Qc4 {[%emt 0:08:04]} 28. Qb7 {[%emt 0:03:30]} Rc7 {[%emt 0:02:36]} 1/2-1/2

[Event "8th Mersin Open 2024"]
[Site "Mersin"]
[Date "2024.11.12"]
[Round "4"]
[White "Ozen, Ilhami Goktug"]
[Black "Taavoni, Rahim"]
[Result "0-1"]
[ECO "C54"]
[WhiteElo "1841"]
[BlackElo "1958"]
[Annotator "NA RC"]
[PlyCount "56"]
[EventDate "2024.11.10"]
[EventType "swiss"]
[EventCountry "TUR"]
[SourceTitle "playchess.com"]
[Source "ChessBase"]
[SourceQuality "1"]
[TimeControl "5400+30"]

1. e4 {[%emt 0:01:00]} e5 {[%emt 0:04:00]} 2. Nf3 {[%emt 0:00:30]} Nc6 {[%emt 0:00:30]} 3. Bc4 {[%emt 0:00:00]} Nf6 {[%emt 0:00:30]} 4. d3 {[%emt 0:00:00]} Bc5 {[%emt 0:00:00]} 5. O-O {[%emt 0:00:00]} d6 {[%emt 0:00:00]} 6. c3 {[%emt 0:00:00]} a6 {[%emt 0:00:00]} 7. Bb3 {[%emt 0:00:00]} Ba7 {[%emt 0:00:00]} 8. Nbd2 {[%emt 0:00:00]} O-O {[%emt 0:00:00]} 9. Re1 {[%emt 0:00:30]} Ng4 {[%emt 0:02:00]} 10. Re2 {[%emt 0:00:00]} Kh8 {[%emt 0:00:30]} 11. h3 {[%emt 0:01:00]} Nh6 {[%emt 0:00:00]} 12. Nf1 {[%emt 0:05:30]} f5 {[%emt 0:01:00]} 13. Bxh6 {[%emt 0:10:30]} gxh6 {[%emt 0:00:00]} 14. N1h2 {[%emt 0:00:00]} Qf6 {[%emt 0:09:00]} 15. Rd2 {[%emt 0:07:00]} fxe4 {[%emt 0:25:30]} 16. dxe4 {[%emt 0:00:30]} Qg6 {[%emt 0:00:00]} 17. Kh1 {[%emt 0:09:30]} Qxe4 {[%emt 0:02:00]} 18. Re2 {[%emt 0:08:30]} Qf4 {[%emt 0:08:30]} 19. Bd5 {[%emt 0:01:30]} Ne7 {[%emt 0:02:30]} 20. Be4 {[%emt 0:01:30]} Rg8 {[%emt 0:11:30]} 21. Qc2 {[%emt 0:08:30]} d5 {[%emt 0:06:30]} 22. Bxh7 {[%emt 0:02:30]} Rg7 {[%emt 0:00:00]} 23. Rxe5 {[%emt 0:02:30]} Rxh7 {[%emt 0:00:00]} 24. Rae1 {[%emt 0:00:00]} Bc5 {[%emt 0:05:30]} 25. R5e2 {[%emt 0:08:00]} Bf5 {[%emt 0:03:30]} 26. Qb3 {[%emt 0:00:30]} b5 {[%emt 0:01:36]} 27. Ne5 {[%emt 0:01:30]} Rg7 {[%emt 0:02:30]} 28. Nhf3 {[%emt 0:01:30]} Be4 {[%emt 0:00:53]} 0-1

[Event "8th Mersin Open 2024"]
[Site "Mersin"]
[Date "2024.11.12"]
[Round "4"]
[White "Ilek, Kadir Bertan"]
[Black "Turkmen, Yusuf Cagan"]
[Result "1/2-1/2"]
[ECO "D02"]
[WhiteElo "1827"]
[BlackElo "1942"]
[Annotator "NA RC"]
[PlyCount "36"]
[EventDate "2024.11.10"]
[EventType "swiss"]
[EventCountry "TUR"]
[SourceTitle "playchess.com"]
[Source "ChessBase"]
[SourceQuality "1"]
[TimeControl "5400+30"]

1. d4 {[%emt 0:01:00]} d5 {[%emt 0:01:00]} 2. Bf4 {[%emt 0:00:00]} Nf6 {[%emt 0:00:30]} 3. e3 {[%emt 0:01:00]} e6 {[%emt 0:00:00]} 4. Nd2 {[%emt 0:00:00]} Bd6 {[%emt 0:00:00]} 5. Bg3 {[%emt 0:00:00]} O-O {[%emt 0:00:30]} 6. Ngf3 {[%emt 0:00:30]} c5 {[%emt 0:00:00]} 7. c3 {[%emt 0:00:30]} Qc7 {[%emt 0:00:00]} 8. Ne5 $11 {[%emt 0:00:30]} Nbd7 {[%emt 0:11:30]} 9. f4 {[%emt 0:00:30]} Ne4 {[%emt 0:02:30]} 10. Bd3 {[%emt 0:04:30]} Nxd2 {[%emt 0:06:30]} 11. Qxd2 {[%emt 0:00:30]} f6 {[%emt 0:03:30]} 12. Nf3 {[%emt 0:11:30]} f5 {[%emt 0:13:30]} 13. Bh4 {[%emt 0:12:30]} cxd4 {[%emt 0:02:30]} 14. cxd4 {[%emt 0:02:30]} Nf6 {[%emt 0:06:30]} 15. O-O {[%emt 0:13:30]} Ne4 {[%emt 0:08:30]} 16. Qe2 {[%emt 0:01:30]} Bd7 {[%emt 0:02:30]} 17. Rfc1 {[%emt 0:02:30]} Qb6 {[%emt 0:02:30]} 18. Be1 {[%emt 0:05:30]} Bc8 {[%emt 0:07:30]} 1/2-1/2

[Event "8th Mersin Open 2024"]
[Site "Mersin"]
[Date "2024.11.12"]
[Round "4"]
[White "Inciroglu, Emir Cihangir"]
[Black "Karaalioglu, Zeynel Mansur"]
[Result "0-1"]
[ECO "C02"]
[WhiteElo "1811"]
[BlackElo "1875"]
[Annotator "NA RC"]
[PlyCount "74"]
[EventDate "2024.11.10"]
[EventType "swiss"]
[EventCountry "TUR"]
[SourceTitle "playchess.com"]
[Source "ChessBase"]
[SourceQuality "1"]
[TimeControl "5400+30"]

1. e4 {[%emt 0:01:00]} e6 {[%emt 0:01:00]} 2. d4 {[%emt 0:00:30]} d5 {[%emt 0:00:30]} 3. e5 {[%emt 0:00:30]} c5 {[%emt 0:00:30]} 4. c3 {[%emt 0:00:30]} Qb6 {[%emt 0:00:00]} 5. Nf3 {[%emt 0:00:00]} Nc6 {[%emt 0:00:00]} 6. a3 {[%emt 0:00:00]} Nh6 {[%emt 0:00:30]} 7. b4 {[%emt 0:00:00]} cxd4 {[%emt 0:00:30]} 8. cxd4 {[%emt 0:00:00]} Nf5 {[%emt 0:00:00]} 9. Be3 {[%emt 0:00:30]} f6 {[%emt 0:01:00]} 10. exf6 {[%emt 0:00:30]} gxf6 {[%emt 0:00:30]} 11. Bd3 {[%emt 0:00:00]} Nxe3 {[%emt 0:01:30]} 12. fxe3 {[%emt 0:00:00]} Bh6 {[%emt 0:00:30]} 13. Qe2 {[%emt 0:01:30]} e5 {[%emt 0:02:30]} 14. Nfd2 {[%emt 0:03:30]} O-O {[%emt 0:04:30]} 15. Nc3 {[%emt 0:05:30]} Be6 {[%emt 0:05:30]} 16. Na4 {[%emt 0:00:30]} Qd8 {[%emt 0:00:30]} 17. Nb3 {[%emt 0:01:30]} e4 {[%emt 0:05:30]} 18. Bc2 {[%emt 0:00:30]} b6 {[%emt 0:01:30]} 19. Nb2 {[%emt 0:07:30]} f5 {[%emt 0:02:30]} 20. g3 {[%emt 0:00:30]} Qg5 {[%emt 0:01:30]} 21. Nd1 {[%emt 0:00:30]} Rac8 {[%emt 0:00:30]} 22. Qd2 {[%emt 0:15:30]} Bf7 {[%emt 0:08:30]} 23. Rg1 {[%emt 0:09:30]} Bh5 {[%emt 0:05:30]} 24. h4 {[%emt 0:00:30]} Qg6 {[%emt 0:00:00]} 25. Kf1 {[%emt 0:00:30]} Ne7 {[%emt 0:01:00]} 26. Nf2 {[%emt 0:01:30]} Bxe3 {[%emt 0:01:30]} 27. Qxe3 {[%emt 0:00:30]} Rxc2 {[%emt 0:00:00]} 28. Rc1 {[%emt 0:02:30]} f4 {[%emt 0:06:00]} 29. gxf4 {[%emt 0:02:30]} Be2+ {[%emt 0:00:30]} 30. Qxe2 {[%emt 0:00:00]} Qxg1+ {[%emt 0:00:30]} 31. Kxg1 {[%emt 0:00:00]} Rxe2 {[%emt 0:00:00]} 32. Ng4 {[%emt 0:00:30]} Kh8 {[%emt 0:01:00]} 33. Ne5 {[%emt 0:00:30]} Rc8 {[%emt 0:01:30]} 34. Rxc8+ {[%emt 0:02:30]} Nxc8 {[%emt 0:00:30]} 35. f5 {[%emt 0:00:00]} Rb2 {[%emt 0:00:00]} 36. Nc5 {[%emt 0:00:00]} bxc5 {[%emt 0:00:00]} 37. bxc5 {[%emt 0:00:00]} Kg7 {[%emt 0:00:30]} 0-1

[Event "8th Mersin Open 2024"]
[Site "Mersin"]
[Date "2024.11.12"]
[Round "4"]
[White "Jabbarli, Farid"]
[Black "Tatlioglu, Ege"]
[Result "0-1"]
[ECO "E05"]
[WhiteElo "1672"]
[BlackElo "1910"]
[Annotator "NA RC"]
[PlyCount "66"]
[EventDate "2024.11.10"]
[EventType "swiss"]
[EventCountry "TUR"]
[SourceTitle "playchess.com"]
[Source "ChessBase"]
[SourceQuality "1"]
[TimeControl "5400+30"]

1. Nf3 {[%emt 0:01:00]} d5 {[%emt 0:01:00]} 2. g3 {[%emt 0:00:00]} Nf6 {[%emt 0:01:30]} 3. Bg2 {[%emt 0:00:00]} e6 {[%emt 0:00:00]} 4. O-O {[%emt 0:00:30]} Be7 {[%emt 0:00:00]} 5. d4 {[%emt 0:00:00]} O-O {[%emt 0:00:30]} 6. c4 {[%emt 0:00:00]} dxc4 {[%emt 0:00:30]} 7. Qc2 {[%emt 0:00:00]} b5 {[%emt 0:00:00]} 8. a4 {[%emt 0:01:00]} b4 {[%emt 0:00:00]} 9. Ne5 {[%emt 0:03:30]} Qxd4 {[%emt 0:00:30]} 10. Bxa8 {[%emt 0:01:30]} Qxe5 {[%emt 0:00:00]} 11. Bg2 {[%emt 0:00:00]} Bc5 {[%emt 0:15:00]} 12. Bf4 {[%emt 0:09:00]} Qh5 {[%emt 0:00:30]} 13. Qxc4 {[%emt 0:03:30]} Ba6 {[%emt 0:02:30]} 14. Qc2 {[%emt 0:12:30]} Nbd7 {[%emt 0:13:30]} 15. h3 {[%emt 0:05:30]} e5 {[%emt 0:25:30]} 16. g4 {[%emt 0:04:30]} Nxg4 {[%emt 0:03:30]} 17. hxg4 {[%emt 0:02:30]} Qxg4 {[%emt 0:00:30]} 18. Bg3 {[%emt 0:03:30]} Qxg3 {[%emt 0:13:30]} 19. Qxc5 {[%emt 0:00:30]} Qxg2+ {[%emt 0:01:30]} 20. Kxg2 {[%emt 0:01:30]} Nxc5 {[%emt 0:01:18]} 21. Nd2 {[%emt 0:00:30]} Rd8 {[%emt 0:00:40]} 22. Nf3 {[%emt 0:00:30]} Bxe2 {[%emt 0:05:32]} 23. Rfe1 {[%emt 0:00:30]} Bxf3+ {[%emt 0:00:55]} 24. Kxf3 {[%emt 0:00:30]} Nd3 {[%emt 0:04:39]} 25. Red1 {[%emt 0:01:30]} f5 {[%emt 0:01:19]} 26. Rac1 {[%emt 0:01:30]} e4+ {[%emt 0:00:30]} 27. Kg2 {[%emt 0:00:00]} Rd6 {[%emt 0:00:14]} 28. Ra1 {[%emt 0:03:00]} a5 {[%emt 0:01:13]} 29. b3 {[%emt 0:00:00]} g5 {[%emt 0:00:04]} 30. Kf1 {[%emt 0:01:00]} g4 {[%emt 0:00:33]} 31. Ra2 {[%emt 0:00:30]} Rh6 {[%emt 0:00:43]} 32. Kg1 {[%emt 0:00:30]} Rh3 {[%emt 0:00:25]} 33. Rc2 {[%emt 0:00:30]} c5 {[%emt 0:00:04]} 0-1

[Event "8th Mersin Open 2024"]
[Site "Mersin"]
[Date "2024.11.12"]
[Round "4"]
[White "Yaglioglu, Batuhan Alp"]
[Black "Tawel, Ihab."]
[Result "0-1"]
[ECO "B22"]
[WhiteElo "1599"]
[BlackElo "1584"]
[Annotator "NA RC"]
[PlyCount "102"]
[EventDate "2024.11.10"]
[EventType "swiss"]
[EventCountry "TUR"]
[SourceTitle "playchess.com"]
[Source "ChessBase"]
[SourceQuality "1"]
[TimeControl "5400+30"]

1. e4 {[%emt 0:01:00]} c5 {[%emt 0:02:00]} 2. Nf3 {[%emt 0:00:00]} d6 {[%emt 0:00:30]} 3. c3 {[%emt 0:00:00]} e5 {[%emt 0:00:30]} 4. d4 {[%emt 0:00:30]} Bg4 {[%emt 0:01:30]} 5. Bb5+ {[%emt 0:04:30]} Nd7 {[%emt 0:06:30]} 6. dxe5 {[%emt 0:01:30]} Bxf3 {[%emt 0:00:30]} 7. Qxf3 {[%emt 0:00:30]} dxe5 {[%emt 0:00:30]} 8. O-O {[%emt 0:00:30]} a6 {[%emt 0:01:30]} 9. Bc4 {[%emt 0:05:30]} Ngf6 {[%emt 0:01:30]} 10. Rd1 {[%emt 0:08:30]} Be7 {[%emt 0:04:30]} 11. Bg5 {[%emt 0:01:30]} Qb6 {[%emt 0:11:30]} 12. b3 {[%emt 0:03:30]} Rd8 {[%emt 0:02:30]} 13. Na3 {[%emt 0:09:30]} h6 {[%emt 0:01:30]} 14. Bxf6 {[%emt 0:01:30]} Qxf6 {[%emt 0:00:30]} 15. Qe2 {[%emt 0:05:30]} O-O {[%emt 0:03:30]} 16. Nc2 {[%emt 0:01:30]} Nb6 {[%emt 0:02:30]} 17. Ne3 {[%emt 0:06:30]} Rxd1+ {[%emt 0:07:30]} 18. Rxd1 {[%emt 0:00:30]} Rd8 {[%emt 0:00:00]} 19. Bd5 {[%emt 0:07:30]} Rd7 {[%emt 0:10:00]} 20. Nc4 {[%emt 0:14:30]} Nxc4 {[%emt 0:05:30]} 21. Qxc4 {[%emt 0:00:30]} b5 {[%emt 0:00:30]} 22. Qe2 {[%emt 0:01:30]} Rc7 {[%emt 0:03:30]} 23. Rd3 {[%emt 0:03:30]} Qg5 {[%emt 0:04:30]} 24. Qd1 {[%emt 0:03:43]} Bf8 {[%emt 0:05:30]} 25. Rg3 {[%emt 0:01:33]} Qh4 {[%emt 0:07:02]} 26. Qf3 {[%emt 0:01:33]} Qf4 {[%emt 0:00:58]} 27. Qxf4 {[%emt 0:10:51]} exf4 {[%emt 0:00:10]} 28. Rd3 {[%emt 0:00:31]} b4 {[%emt 0:01:00]} 29. cxb4 {[%emt 0:00:30]} cxb4 {[%emt 0:00:04]} 30. Bc4 {[%emt 0:00:54]} a5 {[%emt 0:01:37]} 31. Kf1 {[%emt 0:01:12]} g5 {[%emt 0:01:25]} 32. Rd5 {[%emt 0:01:02]} a4 {[%emt 0:01:03]} 33. h4 {[%emt 0:00:11]} axb3 {[%emt 0:04:49]} 34. axb3 {[%emt 0:00:36]} Be7 {[%emt 0:00:13]} 35. Rf5 {[%emt 0:01:05]} Bd8 {[%emt 0:00:22]} 36. Ke2 {[%emt 0:02:05]} Kg7 {[%emt 0:00:12]} 37. Rd5 {[%emt 0:00:55]} Bf6 {[%emt 0:00:29]} 38. Kd3 {[%emt 0:00:34]} gxh4 {[%emt 0:01:19]} 39. e5 {[%emt 0:00:29]} Be7 {[%emt 0:02:13]} 40. Ke4 {[%emt 0:00:12]} Bc5 {[%emt 0:02:12]} 41. f3 {[%emt 0:00:30]} Be3 {[%emt 0:00:08]} 42. Kf5 {[%emt 0:01:55]} Rb7 {[%emt 0:04:18]} 43. Kg4 {[%emt 0:00:20]} Rb6 {[%emt 0:00:57]} 44. Rd7 {[%emt 0:01:04]} Rg6+ {[%emt 0:00:12]} 45. Kxh4 {[%emt 0:00:16]} Bf2+ {[%emt 0:00:34]} 46. Kh3 {[%emt 0:00:41]} Rg3+ {[%emt 0:00:30]} 47. Kh2 {[%emt 0:00:30]} Rg5 {[%emt 0:00:00]} 48. Rxf7+ {[%emt 0:00:45]} Kg6 {[%emt 0:00:00]} 49. Kh3 {[%emt 0:00:31]} Rxe5 {[%emt 0:00:14]} 50. Rxf4 {[%emt 0:00:56]} Rh5+ {[%emt 0:00:30]} 51. Kg4 {[%emt 0:00:30]} Rh4# {[%emt 0:00:05]} 0-1

[Event "8th Mersin Open 2024"]
[Site "Mersin"]
[Date "2024.11.12"]
[Round "4"]
[White "Karatiken, Beray"]
[Black "Kocacik, Dogukan"]
[Result "0-1"]
[ECO "A45"]
[WhiteElo "1594"]
[BlackElo "1586"]
[Annotator "NA RC"]
[PlyCount "68"]
[EventDate "2024.11.10"]
[EventType "swiss"]
[EventCountry "TUR"]
[SourceTitle "playchess.com"]
[Source "ChessBase"]
[SourceQuality "1"]
[TimeControl "5400+30"]

1. d4 {[%emt 0:01:00]} Nf6 {[%emt 0:01:00]} 2. Bf4 {[%emt 0:00:30]} c5 {[%emt 0:00:00]} 3. d5 {[%emt 0:00:00]} b5 {[%emt 0:00:00]} 4. c4 {[%emt 0:02:00]} b4 {[%emt 0:00:00]} 5. Nd2 {[%emt 0:01:30]} g6 {[%emt 0:03:00]} 6. e4 {[%emt 0:01:30]} Bg7 {[%emt 0:00:30]} 7. Qc2 {[%emt 0:00:30]} Bb7 {[%emt 0:01:30]} 8. Be2 {[%emt 0:01:30]} d6 {[%emt 0:01:30]} 9. e5 {[%emt 0:01:30]} dxe5 {[%emt 0:08:30]} 10. Bxe5 {[%emt 0:00:00]} Nbd7 {[%emt 0:00:30]} 11. Bf4 {[%emt 0:02:00]} O-O {[%emt 0:09:30]} 12. Ngf3 {[%emt 0:00:30]} Re8 {[%emt 0:10:30]} 13. O-O {[%emt 0:02:30]} e6 {[%emt 0:05:30]} 14. dxe6 {[%emt 0:02:30]} Rxe6 {[%emt 0:00:30]} 15. Bd3 {[%emt 0:00:30]} Ng4 {[%emt 0:09:30]} 16. h3 {[%emt 0:07:30]} Nge5 {[%emt 0:01:30]} 17. Nxe5 {[%emt 0:01:30]} Nxe5 {[%emt 0:01:30]} 18. Be4 {[%emt 0:08:30]} Nc6 {[%emt 0:02:30]} 19. Bd5 {[%emt 0:01:30]} Nd4 {[%emt 0:00:30]} 20. Qa4 {[%emt 0:06:30]} Ne2+ {[%emt 0:01:30]} 21. Kh1 {[%emt 0:01:30]} Bxd5 {[%emt 0:00:30]} 22. cxd5 {[%emt 0:04:30]} Qxd5 {[%emt 0:00:30]} 23. Be3 {[%emt 0:01:30]} Rxe3 {[%emt 0:06:30]} 24. fxe3 {[%emt 0:02:30]} Qxd2 {[%emt 0:04:30]} 25. Rf3 {[%emt 0:01:30]} Nc1 {[%emt 0:11:30]} 26. Qc6 {[%emt 0:04:30]} Qe1+ {[%emt 0:01:41]} 27. Kh2 {[%emt 0:00:30]} Be5+ {[%emt 0:00:15]} 28. Rf4 {[%emt 0:02:30]} Bxf4+ {[%emt 0:04:04]} 29. exf4 {[%emt 0:00:30]} Rd8 {[%emt 0:00:00]} 30. Qxc5 {[%emt 0:00:00]} Rd1 {[%emt 0:00:00]} 31. Qxa7 {[%emt 0:01:00]} Qh1+ {[%emt 0:00:33]} 32. Kg3 {[%emt 0:00:30]} Rd3+ {[%emt 0:00:30]} 33. Kf2 {[%emt 0:00:00]} Rd2+ {[%emt 0:00:00]} 34. Ke3 {[%emt 0:01:00]} Re2+ {[%emt 0:00:00]} 0-1

[Event "8th Mersin Open 2024"]
[Site "Mersin"]
[Date "2024.11.12"]
[Round "4"]
[White "Ulgez, Selin"]
[Black "Akcay, Batin"]
[Result "1-0"]
[ECO "E20"]
[WhiteElo "1569"]
[BlackElo "1573"]
[Annotator "NA RC"]
[PlyCount "39"]
[EventDate "2024.11.10"]
[EventType "swiss"]
[EventCountry "TUR"]
[SourceTitle "playchess.com"]
[Source "ChessBase"]
[SourceQuality "1"]
[TimeControl "5400+30"]

1. d4 {[%emt 0:01:00]} Nf6 {[%emt 0:01:00]} 2. c4 {[%emt 0:00:30]} e6 {[%emt 0:00:30]} 3. Nc3 {[%emt 0:00:30]} Bb4 {[%emt 0:00:00]} 4. f3 {[%emt 0:00:00]} c5 {[%emt 0:00:00]} 5. d5 {[%emt 0:00:00]} d6 {[%emt 0:00:00]} 6. e4 {[%emt 0:00:00]} b5 {[%emt 0:00:00]} 7. cxb5 {[%emt 0:02:00]} exd5 {[%emt 0:00:00]} 8. exd5 {[%emt 0:00:30]} O-O {[%emt 0:00:00]} 9. Bd3 {[%emt 0:00:30]} Kh8 {[%emt 0:00:30]} 10. Nge2 {[%emt 0:02:30]} Bb7 {[%emt 0:01:30]} 11. Be4 {[%emt 0:02:30]} Nxe4 {[%emt 0:00:30]} 12. fxe4 {[%emt 0:00:00]} Qh4+ {[%emt 0:00:30]} 13. Ng3 {[%emt 0:00:00]} a6 {[%emt 0:00:30]} 14. O-O {[%emt 0:01:30]} Bc8 {[%emt 0:02:30]} 15. Rf4 {[%emt 0:02:30]} Qe7 {[%emt 0:00:30]} 16. Qh5 {[%emt 0:02:30]} g6 {[%emt 0:04:30]} 17. Qh6 {[%emt 0:01:30]} f5 {[%emt 0:01:30]} 18. Rh4 {[%emt 0:02:30]} Rg8 {[%emt 0:03:30]} 19. Bg5 {[%emt 0:01:30]} Qg7 {[%emt 0:00:30]} 20. Bf6 {[%emt 0:00:30]} 1-0

[Event "8th Mersin Open 2024"]
[Site "Mersin"]
[Date "2024.11.12"]
[Round "4"]
[White "Dere, Ali Mete"]
[Black "Doygun, Lena"]
[Result "0-1"]
[ECO "C10"]
[WhiteElo "1550"]
[BlackElo "1593"]
[Annotator "NA RC"]
[PlyCount "87"]
[EventDate "2024.11.10"]
[EventType "swiss"]
[EventCountry "TUR"]
[SourceTitle "playchess.com"]
[Source "ChessBase"]
[SourceQuality "1"]
[TimeControl "5400+30"]

1. e4 {[%emt 0:01:00]} e6 {[%emt 0:01:00]} 2. d4 {[%emt 0:00:30]} d5 {[%emt 0:00:00]} 3. Nd2 {[%emt 0:00:00]} dxe4 {[%emt 0:00:00]} 4. Nxe4 {[%emt 0:00:00]} Bd7 {[%emt 0:00:30]} 5. Be3 {[%emt 0:00:30]} Bc6 {[%emt 0:00:00]} 6. Ng3 {[%emt 0:00:30]} Nf6 {[%emt 0:00:00]} 7. Nf3 {[%emt 0:00:30]} Be7 {[%emt 0:01:30]} 8. Bd3 {[%emt 0:00:30]} Nbd7 {[%emt 0:01:30]} 9. O-O {[%emt 0:00:30]} O-O {[%emt 0:01:30]} 10. Qe2 {[%emt 0:02:30]} Bxf3 {[%emt 0:02:30]} 11. Qxf3 {[%emt 0:00:00]} c6 {[%emt 0:00:30]} 12. c3 {[%emt 0:03:00]} Qb6 {[%emt 0:06:30]} 13. Qe2 {[%emt 0:02:30]} c5 {[%emt 0:03:30]} 14. Rad1 {[%emt 0:02:30]} cxd4 {[%emt 0:03:30]} 15. Bxd4 {[%emt 0:00:30]} Bc5 {[%emt 0:00:30]} 16. Bxc5 {[%emt 0:00:30]} Nxc5 {[%emt 0:00:30]} 17. Bc4 {[%emt 0:09:30]} Rfd8 {[%emt 0:05:30]} 18. Qc2 {[%emt 0:02:30]} Rac8 {[%emt 0:06:30]} 19. Bb3 {[%emt 0:01:30]} Nxb3 {[%emt 0:03:30]} 20. axb3 {[%emt 0:00:00]} Rd5 {[%emt 0:00:30]} 21. Ne2 {[%emt 0:03:00]} h6 {[%emt 0:02:30]} 22. Nc1 {[%emt 0:03:30]} Rcd8 {[%emt 0:02:30]} 23. b4 {[%emt 0:05:30]} Ng4 {[%emt 0:03:30]} 24. Rxd5 {[%emt 0:00:30]} Rxd5 {[%emt 0:00:30]} 25. Nb3 {[%emt 0:02:30]} Qd6 {[%emt 0:02:30]} 26. g3 {[%emt 0:02:30]} h5 {[%emt 0:04:30]} 27. Nd4 {[%emt 0:04:30]} Qc7 {[%emt 0:06:30]} 28. Qa4 {[%emt 0:02:30]} Qb8 {[%emt 0:02:30]} 29. Qd1 {[%emt 0:05:30]} Qd8 {[%emt 0:03:30]} 30. Qf3 {[%emt 0:04:30]} Qg5 {[%emt 0:03:30]} 31. Ra1 {[%emt 0:02:30]} a6 {[%emt 0:01:30]} 32. b5 {[%emt 0:01:30]} h4 {[%emt 0:04:30]} 33. bxa6 {[%emt 0:00:30]} bxa6 {[%emt 0:00:30]} 34. h3 {[%emt 0:10:30]} Nh6 {[%emt 0:02:30]} 35. Kg2 {[%emt 0:05:30]} hxg3 {[%emt 0:01:30]} 36. Qxg3 {[%emt 0:01:30]} Qd2 {[%emt 0:00:30]} 37. Qe3 {[%emt 0:01:30]} Rg5+ {[%emt 0:02:30]} 38. Kh2 {[%emt 0:04:19]} Qxb2 {[%emt 0:01:30]} 39. Rxa6 {[%emt 0:01:30]} Qb8+ {[%emt 0:03:30]} 40. f4 {[%emt 0:02:25]} Nf5 {[%emt 0:00:58]} 41. Qe5 {[%emt 0:08:25]} Qb2+ {[%emt 0:16:21]} 42. Qe2 {[%emt 0:00:35]} Nxd4 {[%emt 0:00:30]} 43. Ra8+ {[%emt 0:00:30]} Kh7 {[%emt 0:00:30]} 44. Ra2 {[%emt 0:00:00]} 0-1

[Event "8th Mersin Open 2024"]
[Site "Mersin"]
[Date "2024.11.12"]
[Round "4"]
[White "Ozturk, Yucel Mert"]
[Black "Arslan, Hazar"]
[Result "1-0"]
[ECO "D05"]
[WhiteElo "1545"]
[BlackElo "1597"]
[Annotator "NA RC"]
[PlyCount "71"]
[EventDate "2024.11.10"]
[EventType "swiss"]
[EventCountry "TUR"]
[SourceTitle "playchess.com"]
[Source "ChessBase"]
[SourceQuality "1"]
[TimeControl "5400+30"]

1. d4 {[%emt 0:01:00]} e6 {[%emt 0:01:00]} 2. Nf3 {[%emt 0:00:30]} Nf6 {[%emt 0:00:30]} 3. e3 {[%emt 0:00:00]} d5 {[%emt 0:00:00]} 4. Bd3 {[%emt 0:00:00]} c5 {[%emt 0:00:00]} 5. b3 {[%emt 0:00:30]} Bd6 {[%emt 0:00:00]} 6. Nbd2 {[%emt 0:00:30]} Nc6 {[%emt 0:00:00]} 7. Bb2 {[%emt 0:00:30]} Qc7 {[%emt 0:00:00]} 8. a3 {[%emt 0:00:30]} e5 {[%emt 0:00:00]} 9. dxe5 {[%emt 0:03:30]} Nxe5 {[%emt 0:00:00]} 10. Be2 {[%emt 0:07:30]} Bd7 {[%emt 0:04:00]} 11. O-O {[%emt 0:00:30]} Bc6 {[%emt 0:01:30]} 12. c4 {[%emt 0:12:30]} O-O {[%emt 0:03:30]} 13. h3 {[%emt 0:04:30]} Rfd8 {[%emt 0:03:30]} 14. Qc2 {[%emt 0:02:30]} dxc4 {[%emt 0:03:30]} 15. Nxe5 {[%emt 0:03:30]} cxb3 {[%emt 0:01:30]} 16. Qf5 {[%emt 0:06:30]} Bd5 {[%emt 0:11:30]} 17. Bc4 {[%emt 0:03:30]} Bxe5 {[%emt 0:09:30]} 18. Bxe5 {[%emt 0:02:30]} Qc6 {[%emt 0:01:30]} 19. Bxf6 {[%emt 0:07:30]} Qxf6 {[%emt 0:01:30]} 20. Qxf6 {[%emt 0:00:30]} gxf6 {[%emt 0:00:30]} 21. Bxd5 {[%emt 0:00:30]} Rxd5 {[%emt 0:00:30]} 22. Nxb3 {[%emt 0:00:30]} c4 {[%emt 0:00:00]} 23. Nd4 {[%emt 0:00:00]} b5 {[%emt 0:02:00]} 24. Rfb1 {[%emt 0:00:00]} a6 {[%emt 0:03:30]} 25. Kf1 {[%emt 0:04:30]} Re8 {[%emt 0:04:30]} 26. Ra2 {[%emt 0:03:30]} Rc5 {[%emt 0:04:30]} 27. Ke2 {[%emt 0:02:30]} Rb8 {[%emt 0:00:30]} 28. Kd2 {[%emt 0:02:30]} c3+ {[%emt 0:01:30]} 29. Kc2 {[%emt 0:00:30]} Rd8 {[%emt 0:03:30]} 30. Rb3 {[%emt 0:00:30]} Rdc8 {[%emt 0:01:30]} 31. Ra1 {[%emt 0:04:30]} Rc4 {[%emt 0:00:30]} 32. Rd1 {[%emt 0:01:30]} Ra4 {[%emt 0:02:30]} 33. Nf5 {[%emt 0:00:30]} Kf8 {[%emt 0:01:30]} 34. Rxc3 {[%emt 0:00:30]} Rxc3+ {[%emt 0:00:30]} 35. Kxc3 {[%emt 0:00:00]} Ke8 {[%emt 0:00:30]} 36. Kb3 {[%emt 0:00:00]} 1-0